Cogmind - Beta 15 @@@ ROGUE MODE // 2025.06.30 @ 20:59:59 Player: LameThyst Result: Destroyed by H-55 Commando with Assault Rifle Performance ------------- Evolutions (2) 1000 Regions Visited (4) 800 Robots Destroyed (35) 175 Value Destroyed (1269) 1269 Prototype IDs (3) 60 Alien Tech Used (0) 0 Bonus (89) 89 TOTAL SCORE: 3393 Bonus ------- High Alert Combat Kills 89 Cogmind --------- Core Integrity 0/550 Matter 12/300 Energy 80/100 System Corruption 0% Temperature Cool (0) Movement Walking (120) Location -8/Materials Parts ------- > --- POWER (1) -------- (None) > --- PROPULSION (4) --- Aluminum Leg > --- UTILITY (3) ------ (None) > --- WEAPON (3) ------- Heavy Mace > --- INVENTORY (5) ---- Nuclear Core Titanium Leg High-capacity Storage Unit Utility Shielding Peak State ------------ > --- POWER ------------ Light Angular Momentum Engine > --- PROPULSION ------- Aluminum Leg Aluminum Leg Carbon-fiber Leg Carbon-fiber Leg > --- UTILITY ---------- Large Storage Unit Structural Scanner Light Armor Plating > --- WEAPON ----------- Subdweller Beam Cannon Advanced EMP Blaster Heavy Mace > --- INVENTORY -------- Deuterium Engine Nuclear Core Aluminum Leg Improved Heat Sink High-capacity Storage Unit Compact Battery Targeting Computer Utility Shielding Light Armor Plating EM Pulse Gun Assault Rifle Heavy Assault Rifle Light Cannon Light Cannon Subdweller Shrapnel Launcher [Rating: 27] Favorites ----------- Power Ion Engine Engine Ion Engine Propulsion Aluminum Leg Leg Aluminum Leg Utility Structural Scanner Device Structural Scanner Storage Large Storage Unit Protection Light Armor Plating Weapon Light Cannon Energy Gun Particle Gun Energy Cannon Subdweller Beam Cannon Ballistic Gun Assault Rifle Ballistic Cannon Light Cannon Launcher Subdweller Shrapnel Launcher Impact Weapon Heavy Mace Build | -11 -10 -10 -10 -8 ------- Run | Yrd Mat Min Sub Mat Slots Evolved 4 | . . . . 4 Power . | . . . . . Propulsion 2 | . . . . 2 Utility 1 | . . . . 1 Weapon 1 | . . . . 1 Parts Attached 32 | 7 6 4 6 9 Power 4 | 1 . 1 2 . Engine 4 | 1 . 1 2 . Core . | . . . . . Reactor . | . . . . . Propulsion 6 | 2 . 1 2 1 Treads . | . . . . . Leg 6 | 2 . 1 2 1 Wheel . | . . . . . Hover . | . . . . . Flight . | . . . . . Utility 10 | 1 3 2 . 4 Device 3 | . 2 . . 1 Storage 4 | 1 1 2 . . Processor . | . . . . . Hackware . | . . . . . Protection 3 | . . . . 3 Artifact . | . . . . . Weapon 12 | 3 3 . 2 4 Energy Gun 3 | 2 1 . . . Energy Cannon 3 | . . . 2 1 Ballistic Gun 1 | 1 . . . . Ballistic Cannon 2 | . 2 . . . Launcher 2 | . . . . 2 Special Weapon . | . . . . . Impact Weapon 1 | . . . . 1 Slashing Weapon . | . . . . . Piercing Weapon . | . . . . . Special Melee Weapon . | . . . . . Unidentified Prototypes 1 | . . . . 1 Parts Lost 2 | . . . . 2 Power . | . . . . . Propulsion 1 | . . . . 1 Utility . | . . . . . Weapon 1 | . . . . 1 Highest Loss Streak 1 | . . . . 1 To Critical Strikes . | . . . . . Average Backups 11 | 3 8 10 14 11 Power 1 | . 1 1 1 1 Propulsion 2 | 2 2 2 3 1 Utility 4 | . 2 4 4 4 Weapon 3 | . 2 3 3 3 Tool/Special . | . . . . . Unused Backups 18 | . 3 1 3 11 Power 4 | . . 1 . 3 Propulsion 5 | . 2 . . 3 Utility 6 | . . . 3 3 Weapon 3 | . 1 . . 2 Tool/Special . | . . . . . Average Slot Usage (%) 95 | . 97 100 99 85 Engine 12 | . 14 14 14 7 Leg 28 | . 28 28 28 30 Device 12 | . 9 14 13 8 Storage 12 | . 15 14 14 7 Protection 1 | . . . . 6 Energy Gun 6 | . 13 13 1 . Energy Cannon 5 | . . . 12 6 Ballistic Cannon 12 | . 9 14 14 10 Peak Build Rating 27 | 6 9 9 18 27 Average Rating 13 | 4 7 8 14 19 On Entrance 8 | . 6 9 9 18 Naked Turns 11 | . . . . 11 Heaviest Build 52 | 14 24 32 41 52 Greatest Support 50 | 20 20 20 30 50 Greatest Overweight (x) 3 | . 1 1 1 3 Average Overweight (x) . | . . 1 1 . Largest Inventory Capacity 20 | 8 10 20 15 15 Average Capacity 13 | 6 9 13 15 13 Most Carried 15 | 6 10 12 15 15 Average Carried 11 | 3 8 10 14 11 Final Capacity 15 | 8 10 15 15 5 Final Carried 15 | 6 10 12 15 4 Class Distribution -------------------- 76% | Mutant 11% | Scavenger-Mutant 9% | Scavenger-Tank Dominant Class ---------------- Mutant | -10/Materials Mutant | -10/Mines Mutant | -10/Subcaves Scavenger-Tank | -8/Materials Resources | -11 -10 -10 -10 -8 ----------- Run | Yrd Mat Min Sub Mat Matter Collected 911 | 175 102 257 153 224 Remotely . | . . . . . Salvage Created 925 | . 135 159 105 526 Parts 63 | . 11 7 8 37 Haulers Intercepted 2 | . . . . 2 Recyclers Shooed 1 | . 1 . . . Parts Field Recycled . | . . . . . Retrieved Matter . | . . . . . Parts Self-Destructed . | . . . . . Prevented . | . . . . . Kills | -11 -10 -10 -10 -8 ------- Run | Yrd Mat Min Sub Mat Combat Hostiles Destroyed 27 | . 2 4 3 18 Guns 4 | . 2 2 . . Cannons 12 | . . 2 3 7 AOE 11 | . . . . 11 Classes Destroyed 11 | . 4 1 1 5 Builder 2 | . 1 . . 1 Tunneler 2 | . . 1 . 1 Hauler 2 | . . . . 2 Operator 1 | . 1 . . . Watcher 1 | . 1 . . . Swarmer 3 | . . . . 3 Grunt 15 | . 2 4 . 9 Brawler 1 | . . . . 1 Duelist 1 | . . . . 1 Sentry 4 | . . . . 4 Subdweller 3 | . . . 3 . Best Kill Streak 14 | . 3 2 2 14 Combat Bots Only 11 | . 2 2 2 11 Max Kills in Single Turn 3 | . 1 2 1 3 Gunslinging . | . . . . . Exploded 2 | . . . . 2 Melee . | . . . . . Uniques/NPCs Destroyed . | . . . . . Combat | -11 -10 -10 -10 -8 -------- Run | Yrd Mat Min Sub Mat Hostile Shots Fired 137 | . 7 13 13 104 Missed 40 | . 3 3 4 30 Hits 97 | . 4 10 9 74 Melee 3 | . . . . 3 Projectile 94 | . 4 10 9 71 Critical Strikes 7 | . . . . 7 Damage Taken 1656 | . 171 137 202 1146 Core 673 | . 15 32 65 561 Absorbed by Shields . | . . . . . Core Remaining (%) 77 | 100 . . 55 . Volleys Fired 77 | . 16 16 18 27 Largest 3 | . 2 2 2 3 Hottest 140 | . 70 95 110 140 Shots Fired 148 | . 30 30 36 52 Gun 32 | . 20 10 . 2 Cannon 107 | . 10 20 36 41 Launcher 9 | . . . . 9 Special . | . . . . . Kinetic 95 | . 19 20 18 38 Thermal 37 | . . 10 18 9 Explosive . | . . . . . Electromagnetic 16 | . 11 . . 5 Robot Hit Streak 24 | . 4 4 13 24 Robot Miss Streak 5 | . 1 2 . 5 Penetration Max . | . . . . . Secondary Targets . | . . . . . Shots Hit Robots 66 | . 15 12 11 28 Core Hits 58 | . 9 6 5 38 Critical Kills . | . . . . . Critical Parts Destroyed . | . . . . . Critical Strikes 1 | . . . 1 . Blast 1 | . . . 1 . Melee Attacks 5 | . . . . 5 Impact 5 | . . . . 5 Slashing . | . . . . . Piercing . | . . . . . Sneak Attacks . | . . . . . Combat Hostiles . | . . . . . Follow-up Attacks . | . . . . . Damage Inflicted 2694 | . 251 239 257 1947 Guns 315 | . 203 92 . 20 Cannons 935 | . 17 147 257 514 Explosions 1444 | . 31 . . 1413 Melee . | . . . . . Ramming . | . . . . . Kinetic 1933 | . 92 147 92 1602 Thermal 537 | . . 92 165 280 Explosive 31 | . 31 . . . Electromagnetic 193 | . 128 . . 65 Impact . | . . . . . Slashing . | . . . . . Piercing . | . . . . . Highest Corruption . | . . . . . Average Corruption . | . . . . . Corruption Purged . | . . . . . Corruption Blocked . | . . . . . Overload Shots . | . . . . . Overflow Damage 3 | . . . . 3 Projectiles . | . . . . . Explosions 3 | . . . . 3 Melee . | . . . . . Knockbacks 8 | . . 2 2 4 Impact . | . . . . . Kinetic 6 | . . 2 2 2 Secondary 2 | . . . . 2 Self-Inflicted Damage 158 | . 111 . . 47 Shots 2 | . 1 . . 1 Rammed . | . . . . . Targets Rammed . | . . . . . Kicked . | . . . . . Crushed . | . . . . . Highest Temperature 470 | . 24 300 2 470 Average Temperature 109 | . 14 122 2 124 Received Heat Transfer 723 | . 33 81 60 549 Effects 4 | . . . . 4 Shutdowns 2 | . . . . 2 Matter Decay 1 | . . . . 1 Damage (minor) 1 | . . . . 1 Siege Activations . | . . . . . Martial Activations . | . . . . . Shielding Activations . | . . . . . Robots Disrupted . | . . . . . Combat Hostiles . | . . . . . Robots Corrupted . | . . . . . Combat Hostiles . | . . . . . Parts Fried . | . . . . . Impact Corruptions . | . . . . . Robots Melted . | . . . . . Combat Hostiles . | . . . . . Parts Melted 3 | . . . 3 . Heat Transferred 753 | . . 222 222 309 Parts Sabotaged . | . . . . . Parts Stolen . | . . . . . Parts Stripped . | . . . . . Power Chain Reactions 1 | . . . . 1 Alert | -11 -10 -10 -10 -8 ------- Run | Yrd Mat Min Sub Mat Maximum Alert Level 3 | . . . . 3 Low Security (%) 97 | 100 100 100 . 93 Level 1 . | . . . . 1 Level 2 . | . . . . 2 Level 3 1 | . . . . 3 Level 4 . | . . . . . Level 5 . | . . . . . High Security . | . . . . . Max Security . | . . . . . Peak Influence 745 | . 86 40 . 745 Initial . | . . . . . Average 28 | . 22 3 . 65 Influence Increases 1125 | . 133 95 . 897 Destroy 0b10 Robot/C 480 | . 40 80 . 360 Destroy 0b10 Robot/NC 40 | . 15 5 . 20 Destroy Leader 116 | . 12 10 . 94 Successful Hack 8 | . 8 . . . Disable Machine 60 | . 15 . . 45 Anti-Garrison Action 150 | . . . . 150 Destroy Structure 106 | . 28 . . 78 Partial Spotted 15 | . 15 . . . Lose Combat Pursuer 150 | . . . . 150 Influence Decreases 398 | . 133 95 . 170 Time Decay 363 | . 118 95 . 150 Lost Part 20 | . . . . 20 Purge Threat 15 | . 15 . . . Squads Dispatched 8 | . 1 . . 7 Investigation . | . . . . . Extermination . | . . . . . Reinforcement 3 | . 1 . . 2 Assault 2 | . . . . 2 Garrison 3 | . . . . 3 Intercept . | . . . . . Searches Triggered . | . . . . . Construction Impeded 1 | . . . . 1 Haulers Reinforced . | . . . . . Active Scanning Responses . | . . . . . Cargo Convoy Interrupts . | . . . . . Stealth | -11 -10 -10 -10 -8 --------- Run | Yrd Mat Min Sub Mat Distress Signals 5 | . . . . 5 Communications Jammed . | . . . . . Distress Signals . | . . . . . Times Spotted 61 | . 9 4 13 35 Peak Tracking Total 11 | . 3 2 8 11 Tactical Retreats 2 | . . . . 2 Traps | -11 -10 -10 -10 -8 ------- Run | Yrd Mat Min Sub Mat Traps Triggered . | . . . . . Indirectly . | . . . . . Trap Hack Attempts . | . . . . . Triggered . | . . . . . Disarmed . | . . . . . Reprogrammed . | . . . . . Reused . | . . . . . Traps Extracted . | . . . . . Installed . | . . . . . Triggered . | . . . . . Machines | -11 -10 -10 -10 -8 ---------- Run | Yrd Mat Min Sub Mat Machines Disabled 5 | . 1 . . 4 Max in Single Turn 2 | . 1 . . 2 Garrison Access 1 | . . . . 1 Machines Repaired . | . . . . . Machines Dismantled . | . . . . . Machines Sabotaged . | . . . . . Overloaded Fab Kills . | . . . . . Hacking | -11 -10 -10 -10 -8 --------- Run | Yrd Mat Min Sub Mat Machines Accessed 6 | . 2 . . 4 Terminals 4 | . 1 . . 3 Fabricators . | . . . . . Repair Stations . | . . . . . Recycling Units 1 | . 1 . . . Scanalyzers 1 | . . . . 1 Garrison Access . | . . . . . Total Hacks 11 | . 6 . . 5 Successful 9 | . 6 . . 3 Failed 2 | . . . . 2 Catastrophic 2 | . . . . 2 Database Lockouts . | . . . . . Manual 3 | . 1 . . 2 Terminals 8 | . 5 . . 3 Fabricators . | . . . . . Repair Stations . | . . . . . Recycling Units 1 | . 1 . . . Scanalyzers 2 | . . . . 2 Garrison Access . | . . . . . Terminal Hacks 6 | . 5 . . 1 Record 1 | . 1 . . . Prototype ID Bank 1 | . . . . 1 Branch Access Points 1 | . 1 . . . Emergency Access Points 1 | . 1 . . . Unreport Threat 1 | . 1 . . . Zone Layout 1 | . 1 . . . Fabricator Hacks . | . . . . . Repair Station Hacks . | . . . . . Recycling Unit Hacks 1 | . 1 . . . Retrieve Components 1 | . 1 . . . Scanalyzer 2 | . . . . 2 Insert Component 1 | . . . . 1 Analyze 1 | . . . . 1 Garrison Access Hacks . | . . . . . Unauthorized Hacks . | . . . . . Terminals . | . . . . . Fabricators . | . . . . . Repair Stations . | . . . . . Recycling Units . | . . . . . Scanalyzers . | . . . . . Garrison Access . | . . . . . Data Cores Recovered 1 | . 1 . . . Used . | . . . . . Hacking Detections 2 | . . . . 2 Full Trace Events . | . . . . . Feedback Events . | . . . . . Feedback Blocked . | . . . . . Robot Schematics Acquired . | . . . . . Robots Built . | . . . . . Authchips . | . . . . . Time . | . . . . . Total Robot Build Rating . | . . . . . Part Schematics Acquired 1 | . . . . 1 Parts Built . | . . . . . Authchips . | . . . . . Time . | . . . . . Total Part Build Rating . | . . . . . Parts Repaired . | . . . . . Time . | . . . . . Parts Recycled . | . . . . . Recycled Matter . | . . . . . Retrieved Matter . | . . . . . Retrieved Components 9 | . 9 . . . Parts Scanalyzed 1 | . . . . 1 Part Schematics Acquired 1 | . . . . 1 Parts Damaged . | . . . . . Bothacking | -11 -10 -10 -10 -8 ------------ Run | Yrd Mat Min Sub Mat Used RIF Installer . | . . . . . Robots Hacked . | . . . . . Non-combat . | . . . . . Combat . | . . . . . Robot Hacks Applied . | . . . . . Relay Couplers Released 2 | . . . . 2 Machine Destruction 2 | . . . . 2 Fabnet Peak Effective % . | . . . . . Robots Rewired . | . . . . . Allies Hacked . | . . . . . Hacks Repelled . | . . . . . Allies | -11 -10 -10 -10 -8 -------- Run | Yrd Mat Min Sub Mat Total Allies . | . . . . . Largest Group . | . . . . . Highest-Rated Group . | . . . . . Highest-Rated Ally . | . . . . . Total Orders . | . . . . . Ally Attacks . | . . . . . Total Damage . | . . . . . Kills . | . . . . . Allies Corrupted . | . . . . . Allies Melted . | . . . . . Intel | -11 -10 -10 -10 -8 ------- Run | Yrd Mat Min Sub Mat Active Infowar (turns) 2631 | . 275 803 985 568 Terrain 215 | . 129 . . 86 Structural 2502 | . 146 803 985 568 Robot Analysis Total . | . . . . . Derelict Logs Recovered 2 | . . 1 1 . Drone Launches . | . . . . . Drone Recoveries . | . . . . . Exploration | -11 -10 -10 -10 -8 ------------- Run | Yrd Mat Min Sub Mat Turns Passed 2932 | 74 394 803 986 675 Spaces Moved 1464 | 52 187 298 457 470 Core 117 | 6 . . . 111 Treads . | . . . . . Legs 1347 | 46 187 298 457 359 Wheels . | . . . . . Hover . | . . . . . Flight . | . . . . . Fastest Speed 50 | 50 120 190 190 50 Average Speed 157 | 111 168 190 190 106 Slowest Speed 200 | 120 190 190 190 200 Overloaded Moves . | . . . . . Propulsion Burnouts . | . . . . . Robots Hopped . | . . . . . Potential Cave-ins . | . . . . . Cave-ins Triggered . | . . . . . Exploration Rate (%) 36 | 4 27 70 40 40 Regions Visited 4 Branch Regions 2 Pre-discovered Areas . | . . . . . Known Exits Taken 1 | . 1 . . . Unknown Exits Taken 3 | 1 . 1 1 . Scrap Searched 2 | . . 2 . . Spaces Dug 6 | . . . . 6 Terrain Destroyed 138 | . 31 . 1 106 Melee 5 | . . . . 5 Projectile 3 | . . . 1 2 AOE 130 | . 31 . . 99 Terrain Rammed . | . . . . . Walls Destroyed . | . . . . . Machines Disabled . | . . . . . Actions | -11 -10 -10 -10 -8 --------- Run | Yrd Mat Min Sub Mat Total 1940 | 64 236 505 543 592 Wait 284 | . 13 180 45 46 Move 1460 | 51 186 297 456 470 Hop . | . . . . . Pick Up 37 | 6 8 3 7 13 Fast Attach 11 | 6 2 . 1 2 Attach 10 | . . . 1 9 Detach 4 | . 1 . 1 2 Swap 26 | 1 5 6 6 8 Drop 26 | . 5 3 8 10 Fire 77 | . 16 16 18 27 Melee 5 | . . . . 5 Ram . | . . . . . Kick . | . . . . . Crush . | . . . . . Escape Stasis . | . . . . . Rewire . | . . . . . Trap . | . . . . . Miscellaneous . | . . . . . Route ------- -11/Scrapyard -10/Materials (discovered 2 exits: *Min x2) -10/Mines (discovered 2 exits: [*Mat] / [*Sub]) -10/Subcaves (discovered 2 exits: *Mat x2) -8/Materials (discovered 1 exit: [*Fac]) History --------- Turn | Location | Event 3 | -11/Scrapyard | Discovered new exit (range 16) 75 | -11/Scrapyard | Entered Materials 304 | -10/Materials | Build established: Mutant 346 | -10/Materials | Identified exit to Mines 469 | -10/Materials | Entered Mines 673 | -10/Mines | Discovered new exit (range 9) 764 | -10/Mines | Learned Materials emergency access door positions 815 | -10/Mines | Excavation squad dispatched 815 | -10/Mines | A large section of the Mines collapsed 1240 | -10/Mines | Discovered new exit (range 5) 1272 | -10/Mines | Entered Subcaves 1273 | -10/Subcaves | Approached by a straggling Scientist 1380 | -10/Subcaves | Ambushed by swarm of Subdwellers 1387 | -10/Subcaves | Ambushed by Subdwellers from Twisted Machinery 1567 | -10/Subcaves | Discovered new exit (range 10) 1888 | -10/Subcaves | A swath of the cavern ceiling suddenly collapsed 2015 | -10/Subcaves | Shifting Twisted Machinery released Mak. Thermal Plating 2021 | -10/Subcaves | Learned Materials stockpile data 2027 | -10/Subcaves | Discovered new exit (range 16) 2043 | -10/Subcaves | Shifting Twisted Machinery released Flamer 2258 | -10/Subcaves | Entered Materials 2258 | -8/Materials | Evolved 4 slots: Propulsion x2, Utility x1, Weapon x1 2446 | -8/Materials | Discovered new exit (range 9) 2697 | -8/Materials | Garrison activated, responded to threat 2826 | -8/Materials | Released all parts (9) 2860 | -8/Materials | Core integrity fell below 50% 2902 | -8/Materials | Core integrity fell below 20% 2933 | -8/Materials | Destroyed 11 combat bots 2933 | -8/Materials | Destroyed by H-55 Commando with Assault Rifle Last Messages --------------- 02898_ T-07 Excavator destroyed. 02899_ Critical hit (Burn: +37). 02900_ A-02 Transporter destroyed. 02900_ G-47 Trooper destroyed. 02902_ Destroyed Particle Gun. 02904_ G-47 Trooper destroyed. 02906_ W-25 Informer sends out distress signal. 02908_ Critical hit (Burn: +37). 02912_ ALERT: Garrison Access compromised, dispatching multiple assault carriers. 02912_ L-31 Rogue destroyed. 02915_ Sub. Shrapnel Launcher destroyed. 02917_ U-05 Engineer builds a Wall. 02921_ U-05 Engineer lays Concrete. 02926_ U-05 Engineer builds a Wall. 02926_ Critical hit (Burn: +37). 02929_ Slug penetrates Wall. 02930_ U-05 Engineer lays Concrete. 02933_ Acquired Aluminum Leg. 02933_ Penetrated by Slug. Map ----- +----------------------------------------------------+ | ?????????????????????????????????????????????????? | | ?????????????????????????????????????????????????? | | ?????????????????????????????????????????????????? | | ?????????????????????????????????????????????????? | | ?????????????????????????????????????????????????? | | ?????????????????????????????????????????????????? | | ?????????????????????????????????????????????????? | | ?????????????????????????????????????????????????? | | ?????????????????????????????????????????????????? | | # ? #??????????????????????????????????????? | | #####+#+###???????????????? ?????????????????????? | | ##??????????????? r#???????????????????? | | ##???????????"" ? #???????????????????? | | """ ###???? """"" ? #???????????????????? | | """ ####??## """ ? #???????????????????? | | """ """# ; ? hk#???????????????????? | | G? ? #??????????+????????? | | "" ;## #???????????????????? | | [ ! ## ## #???????????????????? | | [= = [ [[ u #???????????????????? | | ]%[ != = = [[ #???????????????????? | | /!=[[ [%* !=% #????????????"??????? | | ^ "![#"## %! % ! ;#???????????????????? | | ^ "*[ ! / Y ![; #???????????????????? | | ]* "" # *%%; #??????# #### | | ]!"%! " ## @ ; #??????############## | | [![= "" ### ; #?????? | | =]#= """ ####### ;##?????? | | !*# """ ##????# """ ##??????? | | [!# ##????# ;#????????#?########### | | ]# [ ##????# ##?????????? ######## | | # ##????#########;;#?????????????????##"" | | ###########????????????####???????????########"" | | ###########???????????????????????????########"" | | ##?????????????????????????????+???? ?## + | | ##????????????????????????????????????## # | | % ##????????????????????????????????????## ### | | ##????????????????????????????????????## ### | | %*##????????????????????????????????????## ### | | = ##?###???????????????????????#????????## ### | | #### #######????????????????+?????????## ### | | ## #??????????????????????????######+### | | # """ """ #?????????????????????#????###### | | # """ "T" #????????????????????#??????#??## ### | | " / """ #??????? # ????????????????#?## ### | | # #??????? # ??????????????????## ### | | # #??????? + ????????????#?????## ### | | #### = #??????? # ????????#?????????## ##? | | # #?????? #???????????????????## ### | | ] ###########?????? ##??????????###??###### ### | +----------------------------------------------------+ Best States ------------- Heat Dissipation 31 Energy Generation 18 Energy Capacity 250 Matter Stores 300 Matter Capacity 300 Sight Range 16 Terrain Scan Range 16 Terrain Scan Density 10 Armor Coverage 150 Utility Shielding 33 Evasion (%) 55 Item Schematics ----------------- Sub. Shrapnel Launcher | -8/Materials | Scanalyzed Robot Schematics ------------------ None Fabricated ------------ Nothing Repaired ---------- Nothing Alien Tech Used ----------------- None Achievements -------------- None Challenges ------------ None Game ------ Seed PhasingClaymoresAutogun Manual? 0 Play Time 00:29:12 Cumulative 39.8 hours Start 2025.06.30 @ 20:31:17 End 2025.06.30 @ 20:59:59 Sessions 1 Manual Loads 0 Difficulty Rogue Special Mode None Game No. 44 Rogue 44 Adventurer 0 Explorer 0 Win Type - Total 0 Types 0/0/0/0/0/0/0/0/0/0 Lore% 15 Gallery% 31 Achievement% 23 Wizard Run 0 Options --------- Layout 1 ASCII 0 Keyboard 0 Movement Mouse Keybinds 0 Fullscreen 2 Font 48/Smallcaps Map View 50x35 Zoom Use 0% Tactical HUD 1 Map Filters NONE Filters NONE Steam 0 RUN: e3fc7327-034e-47cd-968f-0c820a86cf99